fUST/lending_fUST_20250828
["ID","MTS","AMOUNT","RATE_DAILY","PERIOD"]
[381824400,1756359888272,-480.0,0.00019896,2]
[381824401,1756359888281,-10.35823456,0.000199,2]
[381824402,1756359888300,-6075.22818812,0.000199,2]
[381824403,1756359888413,-564.92,0.000199,2]
[381824404,1756359888430,-480.0,0.000199,2]
[381824405,1756359888454,-5404.91617584,0.000199,2]
[381824406,1756359888555,-1263.94,0.0001991,2]
[381824407,1756359888572,-480.0,0.0001991,2]
[381824408,1756359888582,-761.31382416,0.00019911,2]
[381824409,1756359888610,-236.09617584,0.00019911,2]
[381824410,1756359888619,-1234.58,0.00019911,2]
[381824411,1756359888628,-480.0,0.00019911,2]
[381824412,1756359888637,-3024.22,0.00019911,2]
[381824413,1756359888646,-484.58,0.00019911,2]
[381824414,1756359888655,-1411.39,0.00019911,2]
[381824415,1756359888664,-1526.57,0.00019911,2]
[381824416,1756359888674,-324.14,0.0001997,2]
[381824417,1756359888683,-1278.43382416,0.0001997,2]
[381824418,1756359933561,-10000.01,0.0001906,2]
[381824419,1756359933766,-1805.0258009,0.0001906,2]
[381824420,1756359933800,-229.06467035,0.00019596,2]
[381824421,1756359933834,-480.0,0.00019696,2]
[381824422,1756359933868,-480.0,0.00019696,2]
[381824423,1756359933902,-480.0,0.00019696,2]
[381824424,1756359933936,-480.0,0.00019696,2]
[381824425,1756359933971,-480.0,0.00019696,2]
[381824426,1756359934007,-44.1090575,0.00019696,2]
[381824427,1756359934154,-1043.6109425,0.00019696,2]
[381824428,1756359934190,-480.0,0.00019696,2]
[381824429,1756359934227,-480.0,0.00019696,2]
[381824430,1756359934262,-480.0,0.00019696,2]
[381824431,1756359934347,-1173.58,0.00019696,2]
[381824432,1756359934380,-480.0,0.00019696,2]
[381824433,1756359934414,-480.0,0.00019795,2]
[381824434,1756359934447,-285.628115,0.00019795,2]
[381824435,1756359934659,-194.371885,0.00019795,2]
[381824436,1756359934694,-785.44,0.00019796,2]
[381824437,1756359934739,-480.0,0.00019894,2]
[381824438,1756359934772,-844.46,0.00019895,2]
[381824439,1756359934803,-528.92300184,0.00019895,2]
[381824440,1756359934835,-482.54914917,0.00019895,2]
[381824441,1756359934867,-1152.89,0.00019895,2]
[381824442,1756359935027,-1614.85,0.00019895,2]
[381824443,1756359935059,-480.0,0.00019896,2]
[381824444,1756359935091,-480.0,0.00019896,2]
[381824445,1756359935123,-872.45,0.00019896,2]
[381824446,1756359935156,-480.0,0.00019896,2]
[381824447,1756359935187,-480.0,0.00019896,2]
[381824448,1756359935222,-480.0,0.00019896,2]
[381824449,1756359935369,-480.0,0.00019896,2]
[381824450,1756359935404,-495.58,0.00019896,2]
[381824451,1756359935435,-480.0,0.00019896,2]
[381824452,1756359935467,-558.11,0.00019896,2]
[381824453,1756359935498,-490.45,0.00019896,2]
[381824454,1756359935530,-961.11,0.00019896,2]
[381824455,1756359935561,-480.0,0.00019896,2]
[381824456,1756359935591,-480.0,0.00019896,2]
[381824457,1756359935621,-480.0,0.00019896,2]
[381824458,1756359935761,-516.82,0.00019696,2]
[381824459,1756359935792,-480.0,0.00019896,2]
[381824460,1756359935823,-480.0,0.00019896,2]
[381824461,1756359935853,-480.0,0.00019896,2]
[381824462,1756359935883,-480.0,0.00019896,2]
[381824463,1756359935915,-482.12182581,0.00019896,2]
[381824464,1756359935947,-480.0,0.00019896,2]
[381824465,1756359935978,-1046.12634838,0.00019898,2]
[381824466,1756359936131,-1109.87365162,0.00019898,2]
[381824467,1756359936163,-480.0,0.00019899,2]
[381824468,1756359936194,-480.0,0.00019899,2]
[381824469,1756359936225,-518.90350799,0.00019899,2]
[381824470,1756359936255,-484.30231142,0.00019899,2]
[381824471,1756359936285,-480.0,0.00019899,2]
[381824472,1756359936317,-480.0,0.00019899,2]
[381824473,1756359936347,-480.0,0.00019899,2]
[381824474,1756359936377,-334.53105794,0.00019899,2]
[381824475,1756359936505,-304.78894206,0.00019899,2]
[381824476,1756359936536,-543.43,0.0001991,2]
[381824477,1756359936567,-480.0,0.00019911,2]
[381824478,1756359936598,-480.0,0.00019911,2]
[381824479,1756359936630,-784.35,0.00019911,2]
[381824480,1756359936662,-1580.16617584,0.0001997,2]
[381824481,1756359936693,-488.4,0.0001997,2]
[381824482,1756359936854,-802.95,0.0001997,2]
[381824483,1756359936886,-498.41,0.0001997,2]
[381824484,1756359936920,-506.08,0.0001997,2]
[381824485,1756359936952,-480.0,0.0001997,2]
[381824486,1756359936984,-588.96,0.0001997,2]
[381824487,1756359937016,-480.0,0.0001997,2]
[381824488,1756359937049,-1061.22,0.0001997,2]
[381824489,1756359937081,-480.0,0.0001997,2]
[381824490,1756359938528,-51.1872877,0.00018909,2]
[381824491,1756359938565,-502.2459342,0.00018909,2]
[381824492,1756359938576,-300.7040658,0.00019696,2]
[381824493,1756359938601,-179.2959342,0.00019696,2]
[381824494,1756359938612,-319.1140658,0.00019896,2]
[381824495,1756359938635,-160.8859342,0.00019896,2]
[381824496,1756359938647,-345.1940658,0.00019899,2]
[381824497,1756359938670,-134.8059342,0.00019899,2]
[381824498,1756359938680,-345.1940658,0.0001997,2]
[381824499,1756359938703,-134.8059342,0.0001997,2]
[381824500,1756359938712,-454.1540658,0.0001997,2]
[381824501,1756359938740,-480.0,0.0001997,2]
[381824502,1756359938762,-192.5559342,0.0001997,2]
[381824503,1756359938772,-581.01,0.0001997,2]
[381824504,1756359938782,-287.6540658,0.0001997,2]
[381824505,1756359938808,-207.3559342,0.0001997,2]
[381824506,1756359938818,-272.6440658,0.0001997,2]
[381824507,1756359938835,-204.77,0.0001997,2]
[381824508,1756359983622,-209.52749684,0.00019596,2]
[381824509,1756359983656,-164.57808423,0.00019596,2]
[381824510,1756359983688,-164.69517072,0.00019596,2]
[381824511,1756359983721,-480.0,0.00019696,2]
[381824512,1756359983751,-480.0,0.00019696,2]
[381824513,1756359983783,-480.0,0.00019696,2]
[381824514,1756359983815,-480.0,0.00019696,2]
[381824515,1756359983850,-480.0,0.00019696,2]
[381824516,1756359983882,-1095.85,0.00019696,2]
[381824517,1756359983914,-480.0,0.00019696,2]
[381824518,1756359983948,-480.0,0.00019696,2]
[381824519,1756359984346,-480.0,0.00019696,2]
[381824520,1756359984555,-501.22,0.00019696,2]
[381824521,1756359984589,-480.0,0.00019696,2]
[381824522,1756359984622,-657.23,0.00019696,2]
[381824523,1756359984655,-577.14,0.00019696,2]
[381824524,1756359984687,-480.0,0.00019795,2]
[381824525,1756359984719,-720.41,0.00019796,2]
[381824526,1756359984749,-209.52749684,0.0001987,2]
[381824527,1756359984786,-164.69517071,0.0001987,2]
[381824528,1756359984818,-480.0,0.00019895,2]
[381824529,1756359984850,-19.5646649,0.00019895,2]
[381824530,1756359984964,-460.4353351,0.00019895,2]
[381824531,1756359984996,-1007.63,0.00019895,2]
[381824532,1756359985031,-480.0,0.00019895,2]
[381824533,1756359985063,-480.0,0.00019896,2]
[381824534,1756359985094,-480.0,0.00019896,2]
[381824535,1756359985126,-480.0,0.00019896,2]
[381824536,1756359985158,-485.36793858,0.00019896,2]
[381824537,1756359985188,-480.0,0.00019896,2]
[381824538,1756359985220,-480.0,0.00019896,2]
[381824539,1756359985347,-480.0,0.00019896,2]
[381824540,1756359985378,-480.0,0.00019896,2]
[381824541,1756359985409,-497.09,0.00019896,2]
[381824542,1756359985439,-480.0,0.00019896,2]
[381824543,1756359985469,-298.05826681,0.00019896,2]
[381824544,1756359985499,-480.0,0.00019896,2]
[381824545,1756359985531,-480.0,0.00019896,2]
[381824546,1756359985562,-480.0,0.00019896,2]
[381824547,1756359985592,-480.0,0.00019896,2]
[381824548,1756359985623,-480.0,0.00019896,2]
[381824549,1756359985653,-249.71346638,0.00019896,2]
[381824550,1756359985701,-230.28653362,0.00019896,2]
[381824551,1756359985733,-480.0,0.00019896,2]
[381824552,1756359985765,-480.0,0.00019896,2]
[381824553,1756359985796,-480.0,0.00019896,2]
[381824554,1756359985829,-485.56693276,0.00019897,2]
[381824555,1756359985916,-4311.70693276,0.00019897,2]
[381824556,1756359986116,-1376.59613448,0.00019897,2]
[381824557,1756359986149,-480.0,0.00019899,2]
[381824558,1756359986181,-480.0,0.00019899,2]
[381824559,1756359986213,-500.0,0.00019899,2]
[381824560,1756359986249,-480.0,0.00019899,2]
[381824561,1756359986284,-480.0,0.00019899,2]
[381824562,1756359986317,-480.0,0.00019899,2]
[381824563,1756359986349,-480.0,0.00019899,2]
[381824564,1756359986381,-6.81773104,0.00019899,2]
[381824565,1756359986626,-473.18226896,0.00019899,2]
[381824566,1756359986657,-480.0,0.00019899,2]
[381824567,1756359986687,-480.0,0.00019899,2]
[381824568,1756359986717,-480.0,0.00019899,2]
[381824569,1756359986747,-480.0,0.00019899,2]
[381824570,1756359986779,-480.0,0.00019899,2]
[381824571,1756359986809,-480.0,0.00019899,2]
[381824572,1756359986842,-480.0,0.00019899,2]
[381824573,1756359986874,-480.0,0.00019899,2]
[381824574,1756359986905,-480.0,0.00019899,2]
[381824575,1756359987013,-2237.3,0.0001991,2]
[381824576,1756359987051,-2036.76,0.00019911,2]
[381824577,1756359987237,-1451.89,0.00019911,2]
[381824578,1756359987268,-1791.0,0.00019911,2]
[381824579,1756359987299,-234.2359342,0.0001997,2]
[381824580,1756359987330,-793.68,0.0001997,2]
[381824581,1756359987361,-653.7481316,0.0001997,2]
[381824582,1756359988911,-150.9018684,0.0001997,2]
[381824583,1756359988921,-502.01,0.0001997,2]
[381824584,1756359988930,-480.0,0.0001997,2]
[381824585,1756359988939,-972.60179684,0.0001997,2]
[381824586,1756359988957,-25.24820316,0.0001997,2]
[381824587,1756359988967,-619.66,0.0001997,2]
[381824588,1756359988977,-480.0,0.0001997,2]
[381824589,1756359988986,-480.0,0.0001997,2]
[381824590,1756359988995,-479.96,0.0001997,2]
[381824591,1756359989004,-480.0,0.0001997,2]
[381824592,1756359989014,-480.0,0.0001997,2]
[381824593,1756359989025,-443.78179684,0.0001997,2]
[381824594,1756359989143,-480.0,0.00019696,2]
[381824595,1756359989152,-36.21820316,0.0001997,2]
[381824596,1756359989162,-480.0,0.0001997,2]
[381824597,1756359989171,-455.67179684,0.0001997,2]
[381824598,1756359989192,-632.04820316,0.0001997,2]
[381824599,1756359989202,-480.0,0.0001997,2]
[381824600,1756359989211,-480.0,0.0001997,2]
[381824601,1756359989220,-198.95179684,0.0001997,2]
[381824602,1756359989246,-234.2359342,0.0001997,2]
[381824603,1756359989275,-46.81226896,0.0001997,2]
[381824604,1756359989284,-746.86773104,0.0001997,2]
[381824605,1756359989304,-426.71226896,0.0001997,2]
[381824606,1756359989313,-377.93773104,0.0001997,2]
[381824607,1756360018449,-230.25978769,0.00019696,2]
[381824608,1756360020190,-249.74021231,0.00019696,2]
[381824609,1756360020213,-51.97131409,0.00019696,2]
[381824610,1756360022639,-171.84779506,0.00019696,2]
[381824611,1756360025041,-300.0,0.00019695,2]
[381824612,1756360025066,-198.149449,0.00019696,2]
[381824613,1756360026695,-58.03144185,0.00019696,2]
[381824614,1756360026717,-115.9476452,0.00019696,2]
[381824615,1756360028955,-327.70995805,0.00019696,2]
[381824616,1756360035198,-219.30131598,0.00019696,2]
[381824617,1756360037654,-168.53752178,0.00019696,2]
[381824618,1756360039384,-9.18355899,0.00019696,2]
[381824619,1756360039407,-294.61856524,0.00019696,2]
[381824620,1756360044130,-168.048268,0.00019696,2]
[381824621,1756360047684,-299.63553772,0.00019596,2]
[381824622,1756360050491,-296.78545239,0.00019596,2]
[381824623,1756360052989,-374.65611712,0.00019596,2]
[381824624,1756360055644,-202.28306803,0.00019596,2]
[381824625,1756360058457,-165.0307003,0.00019596,2]
[381824626,1756360061306,-311.39885059,0.00019596,2]
[381824627,1756360062901,-243.99014949,0.00019596,2]
[381824628,1756360065161,-178.02437,0.00019596,2]
[381824629,1756360066906,-186.03645096,0.00019596,2]
[381824630,1756360069120,-242.13065232,0.00019596,2]
[381824631,1756360078999,-268.69617012,0.00019596,2]
[381824632,1756360081804,-180.135331,0.00019596,2]
[381824633,1756360084055,-162.85703326,0.00019596,2]
[381824634,1756360087291,-418.6261776,0.00019596,2]
[381824635,1756360089701,-300.0,0.00019596,2]
[381824636,1756360091379,-289.42879766,0.00019596,2]
[381824637,1756360095740,-166.2906419,0.00019596,2]
[381824639,1756360157143,-300.0,0.00018875,2]
[381824640,1756360157164,-9826.64086252,0.00018876,2]
[381824641,1756360164753,1006.350251,0.00013699,2]
[381824643,1756360180557,464.572712,0.0001831,2]
[381824682,1756360231915,-1799.3100121,0.00018776,2]
[381824684,1756360231925,-300.0,0.00018875,2]
[381824686,1756360231940,-30297.17525088,0.00018876,2]
[381824688,1756360231952,-295.49935126,0.00019105,2]
[381824689,1756360231973,-160.0,0.00019695,2]
[381824692,1756360231990,-17.33316676,0.00019696,2]
[381824693,1756360232005,-303.83824991,0.00019696,2]
[381824696,1756360232017,-208.54175009,0.00019696,2]
[381824698,1756360232026,-220.52698686,0.00019696,2]
[381825172,1756360237926,-259.47301314,0.00019696,2]
[381825174,1756360237936,-593.21,0.00019696,2]
[381825176,1756360237945,-738.2,0.00019696,2]
[381825178,1756360237955,-480.0,0.00019696,2]
[381825180,1756360237965,-480.0,0.00019696,2]
[381825182,1756360237974,-480.0,0.00019696,2]
[381825184,1756360237983,-480.0,0.00019696,2]
[381825186,1756360237993,-480.0,0.00019696,2]
[381825188,1756360238003,-480.0,0.00019696,2]
[381825190,1756360238011,-480.0,0.00019696,2]
[381825192,1756360238020,-887.14654834,0.00019696,2]
[381825200,1756360238092,-154.84345166,0.00019696,2]
[381825202,1756360238101,-579.54515618,0.00019696,2]
[381825204,1756360238110,-480.0,0.00019696,2]
[381825206,1756360238120,-481.73283887,0.00019696,2]
[381825208,1756360238129,-190.01134477,0.00019696,2]
[381825210,1756360238138,-776.36,0.00019696,2]
[381825212,1756360238148,-480.0,0.00019696,2]
[381825214,1756360238158,-955.85,0.00019696,2]
[381825216,1756360238167,-480.0,0.00019696,2]
[381825218,1756360238177,-480.0,0.00019696,2]
[381825220,1756360238187,-480.0,0.00019696,2]
[381825222,1756360238200,-1183.13,0.00019696,2]
[381825224,1756360238212,-1165.26,0.00019696,2]
[381825226,1756360238222,-480.0,0.00019696,2]
[381825228,1756360238231,-480.0,0.00019696,2]
[381825230,1756360238241,-480.0,0.00019696,2]
[381825232,1756360238251,-480.0,0.00019696,2]
[381825234,1756360238260,-480.0,0.00019696,2]
[381825236,1756360238270,-504.03,0.00019696,2]
[381825238,1756360238279,-480.0,0.00019696,2]
[381825240,1756360238288,-480.0,0.00019696,2]
[381825242,1756360238298,-480.0,0.00019696,2]
[381825244,1756360238308,-483.89,0.00019696,2]
[381825246,1756360238320,-1554.31,0.00019696,2]
[381825248,1756360238330,-486.40926927,0.00019696,2]
[381825250,1756360238340,-351.35583089,0.00019696,2]
[381825252,1756360238349,-611.68322393,0.00019696,2]
[381825254,1756360238358,-480.0,0.00019696,2]
[381825256,1756360238368,-488.46,0.00019696,2]
[381825258,1756360238378,-480.0,0.00019696,2]
[381825260,1756360238388,-480.0,0.00019696,2]
[381825262,1756360238397,-480.0,0.00019696,2]
[381825264,1756360238407,-480.0,0.00019696,2]
[381825266,1756360238416,-497.33948725,0.00019696,2]
[381825268,1756360238426,-4897.22884392,0.00019696,2]
[381825270,1756360238435,-480.0,0.00019696,2]
[381825272,1756360238444,-480.0,0.00019696,2]
[381825274,1756360238454,-480.0,0.00019696,2]
[381825276,1756360238463,-799.57,0.00019696,2]
[381825278,1756360238472,-603.48,0.00019696,2]
[381825280,1756360238481,-749.04,0.00019696,2]
[381825282,1756360238491,-480.0,0.00019696,2]
[381825284,1756360238501,-480.95494393,0.00019696,2]
[381825286,1756360238510,-480.0,0.00019696,2]
[381825288,1756360238519,-480.0,0.00019696,2]
[381825290,1756360238528,-481.26417287,0.00019696,2]
[381825292,1756360238538,-480.0,0.00019696,2]
[381825294,1756360238547,-480.0,0.00019696,2]
[381825296,1756360238556,-480.0,0.00019696,2]
[381825298,1756360238565,-3343.29,0.00019696,2]
[381825300,1756360238574,-480.0,0.00019696,2]
[381825302,1756360238583,-480.0,0.00019696,2]
[381825304,1756360238592,-480.0,0.00019696,2]
[381825306,1756360238601,-954.9,0.00019696,2]
[381825308,1756360238610,-480.0,0.00019696,2]
[381825310,1756360238619,-649.03,0.00019696,2]
[381825312,1756360238628,-1716.38,0.00019696,2]
[381825314,1756360238637,-482.87282614,0.00019696,2]
[381825316,1756360238646,-739.24,0.00019696,2]
[381825318,1756360238655,-480.59520704,0.00019696,2]
[381825320,1756360238665,-480.0,0.00019795,2]
[381825322,1756360238674,-480.0,0.00019795,2]
[381825323,1756360238683,-576.61,0.00019894,2]
[381825325,1756360238692,-723.33,0.00019894,2]
[381825328,1756360238702,-480.0,0.00019894,2]
[381825330,1756360238712,-2780.68,0.00019895,2]
[381825332,1756360238721,-783.11,0.00019895,2]
[381825334,1756360238730,-480.0,0.00019895,2]
[381825336,1756360238740,-1036.62,0.00019895,2]
[381825338,1756360238750,-480.0,0.00019895,2]
[381825340,1756360238759,-776.12,0.00019895,2]
[381825342,1756360238768,-480.0,0.00019895,2]
[381825344,1756360238777,-973.21,0.00019895,2]
[381825345,1756360238787,-480.0,0.00019895,2]
[381825348,1756360238796,-480.0,0.00019895,2]
[381825349,1756360238805,-480.0,0.00019895,2]
[381825351,1756360238814,-1065.53,0.00019895,2]
[381825354,1756360238824,-1075.78,0.00019895,2]
[381825355,1756360238833,-1236.93,0.00019895,2]
[381825357,1756360238844,-480.0,0.00019895,2]
[381825359,1756360238853,-480.0,0.00019895,2]
[381825362,1756360238863,-481.22,0.00019895,2]
[381825363,1756360238872,-805.65,0.00019895,2]
[381825366,1756360238883,-480.0,0.00019896,2]
[381825368,1756360238892,-480.0,0.00019896,2]
[381825370,1756360238901,-506.94,0.00019896,2]
[381825372,1756360238911,-480.0,0.00019896,2]
[381825374,1756360238919,-480.0,0.00019896,2]
[381825376,1756360238929,-480.0,0.00019896,2]
[381825377,1756360238939,-480.0,0.00019896,2]
[381825379,1756360238948,-480.0,0.00019896,2]
[381825381,1756360238957,-480.0,0.00019896,2]
[381825383,1756360238966,-480.0,0.00019896,2]
[381825385,1756360238975,-480.0,0.00019896,2]
[381825387,1756360238985,-480.0,0.00019896,2]
[381825389,1756360238994,-612.69,0.00019896,2]
[381825391,1756360239003,-480.0,0.00019896,2]
[381825393,1756360239013,-480.0,0.00019896,2]
[381825395,1756360239022,-480.0,0.00019896,2]
[381825397,1756360239031,-592.9,0.00019896,2]
[381825399,1756360239040,-5916.62,0.00019896,2]
[381825401,1756360239049,-4807.37,0.00019897,2]
[381825403,1756360239058,-572.42,0.00019897,2]
[381825405,1756360239068,-627.35,0.00019897,2]
[381825407,1756360239077,-1284.83,0.00019897,2]
[381825409,1756360239086,-308.92,0.00019898,3]
[381825411,1756360239095,-493.18,0.00019899,2]
[381825413,1756360239105,-480.0,0.00019899,2]
[381825415,1756360239114,-480.0,0.00019899,2]
[381825417,1756360239123,-480.0,0.00019899,2]
[381825419,1756360239132,-480.0,0.00019899,2]
[381825421,1756360239142,-480.0,0.00019899,2]
[381825423,1756360239151,-325.04078652,0.00019899,2]
[381825425,1756360239161,-480.0,0.00019899,2]
[381825427,1756360239170,-480.0,0.00019899,2]
[381825429,1756360239179,-480.0,0.00019899,2]
[381825431,1756360239189,-480.0,0.00019899,2]
[381825433,1756360239198,-196.47053413,0.00019899,2]
[381825435,1756360239207,-480.0,0.00019899,2]
[381825437,1756360239216,-480.0,0.00019899,2]
[381825439,1756360239226,-480.0,0.00019899,2]
[381825441,1756360239235,-480.0,0.00019899,2]
[381825443,1756360239245,-480.0,0.00019899,2]
[381825445,1756360239255,-180.25260663,0.00019899,2]
[381825447,1756360239264,-480.0,0.00019899,2]
[381825449,1756360239273,-480.0,0.00019899,2]
[381825451,1756360239282,-480.0,0.00019899,2]
[381825453,1756360239292,-480.0,0.00019899,2]
[381825455,1756360239301,-480.0,0.00019899,2]
[381825457,1756360239310,-480.0,0.00019899,2]
[381825459,1756360239324,-480.0,0.00019899,2]
[381825461,1756360239333,-480.0,0.00019899,2]
[381825463,1756360239343,-652.1,0.00019899,2]
[381825465,1756360239353,-482.07105521,0.00019899,2]
[381825467,1756360239363,-500.0,0.00019899,2]
[381825469,1756360239372,-585.04018486,0.00019899,2]
[381825471,1756360239382,-480.0,0.00019899,2]
[381825474,1756360239396,-480.0,0.00019899,2]
[381825476,1756360239405,-480.0,0.00019899,2]
[381825478,1756360239414,-1220.4,0.00019899,2]
[381825480,1756360239423,-480.0,0.00019899,2]
[381825483,1756360239433,-480.0,0.00019899,2]
[381825486,1756360239442,-480.0,0.00019899,2]
[381825489,1756360239452,-480.0,0.00019899,2]
[381825491,1756360239462,-480.0,0.00019899,2]
[381825493,1756360239471,-480.0,0.00019899,2]
[381825495,1756360239480,-480.0,0.00019899,2]
[381825497,1756360239489,-2226.66,0.00019899,2]
[381825499,1756360239499,-480.0,0.00019899,2]
[381825501,1756360239509,-480.0,0.00019899,2]
[381825503,1756360239518,-480.0,0.00019899,2]
[381825505,1756360239528,-480.0,0.00019899,2]
[381825507,1756360239537,-13717.4060851,0.000199,2]
[381825509,1756360239546,-57042.2315777,0.00019908,2]
[381825511,1756360239555,-595.29,0.0001991,2]
[381825512,1756360239564,-435.86809007,0.0001991,2]
[381825513,1756360239573,-1352.58,0.0001991,2]
[381825514,1756360239582,-480.0,0.0001991,2]
[381825515,1756360239591,-480.0,0.00019911,2]
[381825516,1756360239599,-3283.72,0.00019911,2]
[381825517,1756360239608,-480.0,0.00019911,2]
[381825518,1756360239617,-1080.65,0.00019911,2]
[381825519,1756360239626,-2156.0,0.00019913,2]
[381825520,1756360239634,-20319.02714125,0.00019969,2]
[381825521,1756360239642,-102.06226896,0.0001997,2]
[381825522,1756360239650,-480.0,0.0001997,2]
[381825523,1756360239658,-480.0,0.0001997,2]
[381825524,1756360239666,-480.0,0.0001997,2]
[381825525,1756360239674,-1095.85,0.0001997,2]
[381825526,1756360239681,-480.0,0.0001997,2]
[381825527,1756360239689,-480.0,0.0001997,2]
[381825528,1756360239698,-480.0,0.0001997,2]
[381825529,1756360239707,-480.0,0.0001997,2]
[381825530,1756360239717,-657.23,0.0001997,2]
[381825531,1756360239726,-577.14,0.0001997,2]
[381825532,1756360239736,-304.19,0.0001997,2]
[381825533,1756360239745,-388.60873505,0.0001997,2]
[381825534,1756360239755,-512.38,0.0001997,2]
[381825535,1756360239764,-500.81980917,0.0001997,2]
[381825536,1756360239774,-593.21,0.0001997,2]
[381825537,1756360239783,-738.2,0.0001997,2]
[381825538,1756360239792,-480.0,0.0001997,2]
[381825539,1756360239802,-480.0,0.0001997,2]
[381825541,1756360239811,-480.0,0.0001997,2]
[381825542,1756360239821,-480.0,0.0001997,2]
[381825544,1756360239832,-480.0,0.0001997,2]
[381825546,1756360239842,-480.0,0.0001997,2]
[381825548,1756360239851,-480.0,0.0001997,2]
[381825550,1756360239861,-1041.99,0.0001997,2]
[381825552,1756360239870,-480.0,0.0001997,2]
[381825554,1756360239879,-776.36,0.0001997,2]
[381825556,1756360239889,-480.0,0.0001997,2]
[381825558,1756360239898,-955.85,0.0001997,2]
[381825560,1756360239908,-480.0,0.0001997,2]
[381825562,1756360239917,-480.0,0.0001997,2]
[381825564,1756360239927,-1183.13,0.0001997,2]
[381825566,1756360239936,-1165.26,0.0001997,2]
[381825568,1756360239945,-480.0,0.0001997,2]
[381825570,1756360239955,-480.0,0.0001997,2]
[381825572,1756360239964,-480.0,0.0001997,2]
[381825574,1756360239974,-504.03,0.0001997,2]
[381825576,1756360239983,-480.0,0.0001997,2]
[381825578,1756360239993,-480.0,0.0001997,2]
[381825580,1756360240003,-483.89,0.0001997,2]
[381825582,1756360240013,-1554.31,0.0001997,2]
[381825584,1756360240023,-480.0,0.0001997,2]
[381825586,1756360240032,-488.46,0.0001997,2]
[381825588,1756360240042,-480.0,0.0001997,2]
[381825590,1756360240051,-799.57,0.0001997,2]
[381825592,1756360240061,-603.48,0.0001997,2]
[381825594,1756360240072,-749.04,0.0001997,2]
[381825596,1756360240081,-480.0,0.0001997,2]
[381825599,1756360240091,-480.0,0.0001997,2]
[381825601,1756360240100,-480.0,0.0001997,2]
[381825603,1756360240111,-480.0,0.0001997,2]
[381825605,1756360240120,-3343.29,0.0001997,2]
[381825607,1756360240130,-480.0,0.0001997,2]
[381825609,1756360240139,-480.0,0.0001997,2]
[381825611,1756360240148,-954.9,0.0001997,2]
[381825613,1756360240158,-649.03,0.0001997,2]
[381825615,1756360240168,-1716.38,0.0001997,2]
[381825617,1756360240178,-739.24,0.0001997,2]
[381825619,1756360240187,-552.60506823,0.00019972,2]
[381825621,1756360240197,-500.0,0.00019973,2]
[381825623,1756360240206,-608.23649162,0.00019973,2]
[381825625,1756360240215,-500.0,0.00019973,2]
[381825627,1756360240225,-500.0,0.00019973,2]
[381825629,1756360240235,-500.0,0.00019973,2]
[381825631,1756360240245,-500.0,0.00019973,2]
[381825633,1756360240254,-400.57091245,0.00019973,2]
[381825635,1756360240264,-500.0,0.00019973,2]
[381825637,1756360240274,-500.0,0.00019973,2]
[381825639,1756360240285,-503.61448562,0.00019973,2]
[381825641,1756360240295,-500.0,0.00019973,2]
[381825643,1756360240305,-500.0,0.00019973,2]
[381825645,1756360240315,-500.0,0.00019973,2]
[381825647,1756360240328,-500.0,0.00019973,2]
[381825649,1756360240337,-500.0,0.00019973,2]